Workbook

Sheet Attach MM ER12-312
R4: Attachment MM
C5: Formula Rate calculation | J5: Rate Formula Template | R5: For the 12 months ended 12/31/14
J6: Utilizing Attachment O Data
R7: Page 1 of 2
J8: Montana-Dakota Utilities Co.
C10: To be completed in conjunction with Attachment O.
C11: (inputs from Attachment O are rounded to whole dollars)
C13: (1) | H13: (2) | J13: (3) | L13: (4)
H14: Attachment O
A15: Line | H15: Page, Line, Col. | J15: Transmission | L15: Allocator
A16: No.
A18: 1 | C18: Gross Transmission Plant - Total | H18: Attach O, p 2, line 2 col 5 (Note A) | J18: =202858076+5562337 -> 208420413
A19: 1a | C19: Transmission Accumulated Depreciation | H19: Attach O, p 2, line 8 col 5 (Note A) | J19: =88935431+5562337 -> 94497768
A20: 2 | C20: Net Transmission Plant - Total | H20: Line 1 minus Line 1a (Note B) | J20: =J18-J19 -> 113922645
C22: O&M TRANSMISSION EXPENSE
A23: 3 | C23: Total O&M Allocated to Transmission | H23: Attach O, p 3, line 8 col 5 | J23: 7820774
A24: 3a | C24: Transmission O&M | H24: Attach O, p 3, line 1 col 5 | J24: 7044646
A25: 3b | C25: Less: LSE Expenses included in above, if any | H25: Attach O, p 3, line 1a col 5, if any | J25: 487218
A26: 3c | C26: Less: Account 565 included in above, if any | H26: Attach O, p 3, line 2 col 5, if any | J26: 1403631
A27: 3d | C27: Adjusted Transmission O&M | H27: Line 3a minus Line 3b minus Line 3c | J27: =J24-(J25+J26) -> 5153797
A29: 4 | C29: Annual Allocation Factor for Transmission O&M | H29: (Line 3d divided by line 1a, col 3) | J29: =IF(J27=0,0,J27/J19) -> 0.05453882255 | L29: =J29 -> 0.05453882255
C32: OTHER O&M EXPENSE
A33: 4a | C33: Other O&M Allocated to Transmission | H33: Line 3 minus Line 3d | J33: =J23-J27 -> 2666977
A34: 4b | C34: Annual Allocation Factor for Other O&M | H34: Line 4a divided by Line 1, col 3 | J34: =IF(J33=0,0,J33/J18) -> 0.01279614104 | L34: =J34 -> 0.01279614104
C36: GENERAL AND COMMON (G&C) DEPRECIATION EXPENSE
A37: 5 | C37: Total G&C Depreciation Expense | H37: Attach O, p 3, lines 10 & 11, col 5 (Note H) | J37: 808390
A38: 6 | C38: Annual Allocation Factor for G&C Depreciation Expense | H38: (line 5 divided by line 1 col 3) | J38: =IF(J37=0,0,J37/J18) -> 0.003878650792 | L38: =J38 -> 0.003878650792
C40: TAXES OTHER THAN INCOME TAXES
A41: 7 | C41: Total Other Taxes | H41: Attach O, p 3, line 20 col 5 | J41: 1975179
A42: 8 | C42: Annual Allocation Factor for Other Taxes | H42: (line 7 divided by line 1 col 3) | J42: =IF(J41=0,0,J41/J18) -> 0.009476898023 | L42: =J42 -> 0.009476898023
A44: 9 | C44: Annual Allocation Factor for Other Expense | H44: Sum of line 4b, 6, and 8 | J44: =J34+J38+J42 -> 0.02615168985 | L44: =L34+L38+L42 -> 0.02615168985
C46: INCOME TAXES
A47: 10 | C47: Total Income Taxes | H47: Attach O, p 3, line 27 col 5 | J47: 4314455
A48: 11 | C48: Annual Allocation Factor for Income Taxes | H48: (line 10 divided by line 2 col 3) | J48: =IF(J47=0,0,J47/J20) -> 0.0378717945 | L48: =J48 -> 0.0378717945
C50: RETURN
A51: 12 | C51: Return on Rate Base | H51: Attach O, p 3, line 28 col 5 | J51: 9663552
A52: 13 | C52: Annual Allocation Factor for Return on Rate Base | H52: (line 12 divided by line 2 col 3) | J52: =IF(J51=0,0,J51/J20) -> 0.08482555861 | L52: =J52 -> 0.08482555861
A54: 14 | C54: Annual Allocation Factor for Return | H54: Sum of line 11 and 13 | L54: =L48+L52 -> 0.1226973531
C61: =C5 -> Formula Rate calculation | J61: =J5 -> Rate Formula Template | R61: Attachment MM
J62: =J6 -> Utilizing Attachment O Data | R62: =R5 -> For the 12 months ended 12/31/14
R63: Page 2 of 2
J64: =J8 -> Montana-Dakota Utilities Co.
H66: Multi-Value Project (MVP) Revenue Requirement Calculation
C68: (1) | D68: (2) | E68: (3) | F68: (4) | G68: (5) | H68: (6) | I68: (7) | J68: (8) | K68: (9) | L68: (10) | M68: (11) | N68: (12) | O68: (13) | P68: (14) | Q68: (15) | R68: (16)
A69: Line No. | C69: Project Name | D69: MTEP Project Number | E69: Project Gross Plant | F69: Project Accumulated Depreciation | G69: Transmission O&M Annual Allocation Factor | H69: Annual Allocation for Transmission O&M Expense | I69: Other Expense Annual Allocation Factor | J69: Annual Allocation for Other Expense | K69: Annual Expense Charge | L69: Project Net Plant | M69: Annual Allocation Factor for Return | N69: Annual Return Charge | O69: Project Depreciation Expense | P69: Annual Revenue Requirement | Q69: True-Up Adjustment | R69: MVP Annual Adjusted Revenue Requirement
E70: (Note C) | G70: Page 1 line 4 | H70: (Col 4 * Col 5) | I70: Page 1 line 9 | J70: (Col 3 * Col 7) | K70: (Col 6 + Col 8) | L70: (Col 3 - Col 4) | M70: (Page 1 line 14) | N70: (Col 10 * Col 11) | O70: (Note E) | P70: (Sum Col. 9, 12 & 13) | Q70: (Note F) | R70: Sum Col. 14 & 15 (Note G)
A71: Multi-Value Projects (MVP)
A72: 1a | C72: Big Stone South to Ellendale | D72: 2220 | E72: 5562337 | F72: 0 | G72: =$L$29 -> 0.05453882255 | H72: =F72*G72 -> 0 | I72: =$L$44 -> 0.02615168985 | J72: =E72*I72 -> 145464.5121 | K72: =H72+J72 -> 145464.5121 | L72: =E72-F72 -> 5562337 | M72: =$L$54 -> 0.1226973531 | N72: =L72*M72 -> 682484.027 | O72: 0 | P72: =K72+N72+O72 -> 827948.5391 | Q72: 0 | R72: =P72+Q72 -> 827948.5391
A73: 1b | C73: Project 2 | D73: P2 | E73: 0 | F73: 0 | G73: =$L$29 -> 0.05453882255 | H73: =F73*G73 -> 0 | I73: =$L$44 -> 0.02615168985 | J73: =E73*I73 -> 0 | K73: =H73+J73 -> 0 | L73: =E73-F73 -> 0 | M73: =$L$54 -> 0.1226973531 | N73: =L73*M73 -> 0 | O73: 0 | P73: =K73+N73+O73 -> 0 | Q73: 0 | R73: =P73+Q73 -> 0
A74: 1c | C74: Project 3 | D74: P3 | E74: 0 | F74: 0 | G74: 0.05453882255 | H74: =F74*G74 -> 0 | I74: 0.02615168985 | J74: =E74*I74 -> 0 | K74: =H74+J74 -> 0 | L74: =E74-F74 -> 0 | M74: 0.1226973531 | N74: =L74*M74 -> 0 | O74: 0 | P74: =K74+N74+O74 -> 0 | Q74: 0 | R74: =P74+Q74 -> 0
A92: 2 | C92: MVP Total Annual Revenue Requirements | P92: =SUM(P72:P91) -> 827948.5391 | Q92: =SUM(Q72:Q91) -> 0 | R92: =SUM(R72:R91) -> 827948.5391
A94: 3 | C94: Rev. Req. Adj For Attachment O | P94: =P92 -> 827948.5391
A97: Note
A98: Letter
A99: A | C99: Gross Transmission Plant is that identified on page 2 line 2 of Attachment O and includes any sub lines 2a or 2b etc. and is inclusive of any CWIP included in rate base when authorized by FERC order less any prefunded AFUDC, if applicable.
C100: Transmission Accumulated Depreciation comports with this Note A and Note B below. References to Attachment O "Column 5" throughout this template is an illustrative column designation intended to reference the appropriate right-most column in Attachment O which position may vary by company.
A101: B | C101: Net Transmission Plant is that identified on page 2 line 14 of Attachment O and includes any sub lines 14a or 14b etc. and is inclusive of any CWIP included in rate base when authorized by FERC order.
A102: C | C102: Project Gross Plant is the total capital investment for the project calculated in the same method as the gross plant value in line 1 and includes CWIP in rate base when authorized by FERC order less any prefunded AFUDC, if applicable. This value includes subsequent
C103: subsequent capital investments required to maintain the facilities to their original capabilities.
A104: D | C104: Note deliberately left blank.
A105: E | C105: Project Depreciation Expense is the actual value booked for the project and included in the Depreciation Expense in Attachment O page 3 line 12.
A106: F | C106: True-Up Adjustment is included pursuant to a FERC approved methodology if applicable.
A107: G | C107: The MVP Annual Revenue Requirement is the value to be used in Schedule 26-A.
A108: H | C108: The Total General and Common Depreciation Expense excludes any depreciation expense directly associated with a project and thereby included in page 2 column 13.
